fUST/lending_fUST_20240820
["ID","MTS","AMOUNT","RATE_DAILY","PERIOD"]
[335365239,1724161849875,-500.0,0.00016986,2]
[335365240,1724161849886,-1622.19,0.00016986,2]
[335365241,1724161849899,-500.0,0.00016986,2]
[335365242,1724161849909,-500.0,0.00016986,2]
[335365243,1724161849918,-500.0,0.00016986,2]
[335365244,1724161849927,-500.0,0.00016986,2]
[335365245,1724161849936,-500.0,0.00016986,2]
[335365246,1724161849948,-500.0,0.00016986,2]
[335365247,1724161849960,-500.0,0.00016986,2]
[335365248,1724161849971,-500.0,0.00016986,2]
[335365249,1724161849982,-500.0,0.00016986,2]
[335365250,1724161849991,-516.57011418,0.00016986,2]
[335365251,1724161850000,-500.0,0.00016986,2]
[335365252,1724161850009,-500.0,0.00016986,2]
[335365253,1724161850019,-433.54811813,0.00016986,2]
[335365254,1724161850030,-576.62884116,0.00016986,2]
[335365255,1724161850041,-500.0,0.00016986,2]
[335365256,1724161850051,-500.0,0.00016986,2]
[335365257,1724161850060,-541.8987227,0.00016986,2]
[335365258,1724161850071,-500.0,0.00016986,2]
[335365259,1724161850081,-241.74703384,0.00016986,2]
[335365260,1724161850092,-519.16067318,0.00016986,2]
[335365261,1724161850102,-500.0,0.00016986,2]
[335365262,1724161850115,-500.0,0.00016986,2]
[335365263,1724161850125,-2000.0,0.00016986,2]
[335365264,1724161850136,-866.07,0.00016986,2]
[335365265,1724161850147,-511.97848063,0.00016986,2]
[335365266,1724161850159,-500.0,0.00016986,2]
[335365267,1724161850170,-500.0,0.00016986,2]
[335365268,1724161850181,-500.0,0.00016986,2]
[335365269,1724161850191,-500.0,0.00016986,2]
[335365270,1724161850202,-500.0,0.00016986,2]
[335365271,1724161850214,-1117.96,0.00016986,2]
[335365272,1724161850225,-509.94578498,0.00016986,2]
[335365273,1724161850235,-835.11,0.00016986,2]
[335365274,1724161850245,-500.0,0.00016986,2]
[335365275,1724161850254,-500.0,0.00016986,2]
[335365276,1724161850264,-500.0,0.00016986,2]
[335365277,1724161850273,-500.0,0.00016986,2]
[335365278,1724161850283,-500.0,0.00016986,2]
[335365279,1724161850294,-500.0,0.00016986,2]
[335365280,1724161850303,-500.0,0.00016986,2]
[335365281,1724161850315,-500.0,0.00016986,2]
[335365282,1724161850325,-500.0,0.00016986,2]
[335365283,1724161850335,-500.0,0.00016986,2]
[335365284,1724161850346,-500.0,0.00016986,2]
[335365285,1724161850357,-503.73624201,0.00016986,2]
[335365286,1724161850367,-500.0,0.00016986,2]
[335365287,1724161850377,-500.0,0.00016986,2]
[335365288,1724161850387,-500.0,0.00016986,2]
[335365289,1724161850397,-200.0,0.00016986,2]
[335365290,1724161850406,-674.76,0.00016986,2]
[335365291,1724161850418,-500.0,0.00016986,2]
[335365292,1724161850428,-500.0,0.00016986,2]
[335365293,1724161850438,-500.0,0.00016986,2]
[335365294,1724161850448,-500.0,0.00016986,2]
[335365295,1724161850460,-500.0,0.00016986,2]
[335365296,1724161850470,-500.0,0.00016986,2]
[335365297,1724161850482,-500.0,0.00016986,2]
[335365298,1724161850494,-500.0,0.00016986,2]
[335365299,1724161850504,-500.0,0.00016986,2]
[335365300,1724161850514,-1595.9,0.00016986,2]
[335365301,1724161850523,-500.0,0.00016986,2]
[335365302,1724161850532,-500.0,0.00016986,2]
[335365303,1724161850541,-503.28137629,0.00016986,2]
[335365304,1724161850551,-509.28285814,0.00016986,2]
[335365305,1724161850560,-500.0,0.00016986,2]
[335365306,1724161850571,-500.0,0.00016986,2]
[335365307,1724161850581,-500.0,0.00016986,2]
[335365308,1724161850592,-500.0,0.00016986,2]
[335365309,1724161850602,-500.0,0.00016986,2]
[335365310,1724161850612,-500.0,0.00016986,2]
[335365311,1724161850622,-500.0,0.00016986,2]
[335365312,1724161850632,-509.69570697,0.00016986,2]
[335365313,1724161850642,-984.07,0.00016986,2]
[335365314,1724161850652,-500.0,0.00016986,2]
[335365315,1724161850662,-348.0316953,0.00016986,2]
[335365316,1724161850673,-315.60884849,0.00016986,2]
[335365317,1724161850685,-1040.91,0.00016986,2]
[335365318,1724161850697,-500.0,0.00016986,2]
[335365319,1724161850706,-178.39286826,0.00016986,2]
[335365320,1724161850717,-244.35180494,0.00016986,2]
[335365321,1724161850727,-500.0,0.00016986,2]
[335365322,1724161850738,-469.95727674,0.00016986,2]
[335365323,1724161850748,-500.0,0.00016986,2]
[335365324,1724161850758,-500.0,0.00016986,2]
[335365325,1724161850769,-500.0,0.00016986,2]
[335365326,1724161850781,-500.0,0.00016986,2]
[335365327,1724161850791,-500.0,0.00016986,2]
[335365328,1724161850800,-500.0,0.00016986,2]
[335365329,1724161850810,-500.0,0.00016986,2]
[335365330,1724161850820,-500.0,0.00016986,2]
[335365331,1724161850831,-500.0,0.00016986,2]
[335365332,1724161850847,-503.08874414,0.00016986,2]
[335365333,1724161850857,-500.0,0.00016986,2]
[335365334,1724161850866,-521.59163149,0.00016986,2]
[335365335,1724161850877,-500.0,0.00016986,2]
[335365336,1724161850889,-500.0,0.00016986,2]
[335365337,1724161850900,-570.39,0.00016986,2]
[335365338,1724161850912,-500.0,0.00016986,2]
[335365339,1724161850922,-500.0,0.00016986,2]
[335365340,1724161850932,-500.0,0.00016986,2]
[335365341,1724161850941,-500.0,0.00016986,2]
[335365342,1724161850951,-500.0,0.00016986,2]
[335365343,1724161850961,-500.0,0.00016986,2]
[335365344,1724161850971,-500.0,0.00016986,2]
[335365345,1724161850982,-500.0,0.00016986,2]
[335365346,1724161850993,-500.0,0.00016986,2]
[335365347,1724161851003,-500.0,0.00016986,2]
[335365348,1724161851013,-500.0,0.00016986,2]
[335365349,1724161851024,-2745.62,0.00016986,2]
[335365350,1724161851033,-500.0,0.00016986,2]
[335365351,1724161851045,-500.0,0.00016986,2]
[335365352,1724161851057,-500.0,0.00016986,2]
[335365353,1724161851068,-500.0,0.00016986,2]
[335365354,1724161851078,-500.0,0.00016986,2]
[335365355,1724161851090,-500.0,0.00016986,2]
[335365356,1724161851100,-504.54735381,0.00016986,2]
[335365357,1724161851110,-500.0,0.00016986,2]
[335365358,1724161851119,-237.0707362,0.00016986,2]
[335365359,1724161851129,-500.0,0.00016986,2]
[335365360,1724161851139,-500.0,0.00016986,2]
[335365361,1724161851150,-500.0,0.00016986,2]
[335365362,1724161851160,-504.44859994,0.00016986,2]
[335365363,1724161851171,-629.08,0.00016986,2]
[335365364,1724161851181,-500.0,0.00016986,2]
[335365365,1724161851193,-500.0,0.00016986,2]
[335365366,1724161851203,-500.0,0.00016986,2]
[335365367,1724161851214,-500.0,0.00016986,2]
[335365368,1724161851226,-500.0,0.00016986,2]
[335365369,1724161851236,-500.0,0.00016986,2]
[335365370,1724161851245,-500.0,0.00016986,2]
[335365371,1724161851255,-500.0,0.00016986,2]
[335365372,1724161851264,-500.0,0.00016986,2]
[335365373,1724161851274,-520.75865901,0.00016986,2]
[335365374,1724161851284,-500.0,0.00016986,2]
[335365375,1724161851293,-496.53705127,0.00016986,2]
[335365376,1724161851305,-500.0,0.00016986,2]
[335365377,1724161851314,-500.0,0.00016986,2]
[335365378,1724161851323,-500.0,0.00016986,2]
[335365379,1724161851333,-500.0,0.00016986,2]
[335365380,1724161851345,-629.97,0.00016986,2]
[335365381,1724161851354,-500.0,0.00016986,2]
[335365382,1724161851365,-500.0,0.00016986,2]
[335365383,1724161851375,-500.0,0.00016986,2]
[335365384,1724161851384,-500.0,0.00016986,2]
[335365385,1724161851394,-500.0,0.00016986,2]
[335365386,1724161851404,-436.45933866,0.00016986,2]
[335365387,1724161851419,-500.0,0.00016986,2]
[335365388,1724161851530,-500.0,0.00016986,2]
[335365389,1724161851540,-500.0,0.00016986,2]
[335365390,1724161851550,-500.0,0.00016986,2]
[335365391,1724161851559,-506.59191739,0.00016986,2]
[335365392,1724161851569,-4747.67,0.00016986,2]
[335365393,1724161851578,-500.0,0.00016986,2]
[335365394,1724161851589,-1000.0,0.00017,17]
[335365395,1724161851599,-160.0,0.00017197,3]
[335365396,1724161851610,-5117.28593988,0.00017219,2]
[335365397,1724161851621,-266.7120858,0.0001726,2]
[335365398,1724161851633,-500.0,0.0001726,2]
[335365399,1724161851644,-500.0,0.0001726,2]
[335365400,1724161851655,-500.0,0.0001726,2]
[335365401,1724161851666,-500.0,0.0001726,2]
[335365402,1724161851676,-500.0,0.0001726,2]
[335365403,1724161851686,-500.0,0.0001726,2]
[335365404,1724161851696,-500.0,0.0001726,2]
[335365405,1724161851706,-500.0,0.0001726,2]
[335365406,1724161851715,-500.0,0.0001726,2]
[335365407,1724161851726,-500.0,0.0001726,2]
[335365408,1724161851737,-500.0,0.0001726,2]
[335365409,1724161851748,-500.0,0.0001726,2]
[335365410,1724161851759,-551.74152002,0.0001726,2]
[335365411,1724161851769,-213.1,0.0001726,2]
[335365412,1724161851780,-514.19550752,0.0001726,2]
[335365413,1724161851789,-500.0,0.0001726,2]
[335365414,1724161851799,-673.69,0.0001726,2]
[335365415,1724161851810,-1298.07,0.0001726,2]
[335365416,1724161851820,-506.83749623,0.0001726,2]
[335365417,1724161851830,-500.0,0.0001726,2]
[335365418,1724161851841,-701.65,0.0001726,2]
[335365419,1724161851851,-500.0,0.0001726,2]
[335365420,1724161851860,-500.0,0.0001726,2]
[335365421,1724161851870,-389.58728103,0.0001726,2]
[335365422,1724161851880,-500.0,0.0001726,2]
[335365423,1724161851889,-514.21308514,0.0001726,2]
[335365424,1724161851899,-500.0,0.0001726,2]
[335365425,1724161851909,-500.0,0.0001726,2]
[335365426,1724161851920,-505.84147928,0.0001726,2]
[335365427,1724161851930,-500.0,0.0001726,2]
[335365428,1724161851939,-648.70014127,0.0001726,2]
[335365429,1724161851950,-507.3705587,0.0001726,2]
[335365430,1724161851963,-574.57,0.0001726,2]
[335365431,1724161851974,-505.01568702,0.0001726,2]
[335365432,1724161851984,-500.0,0.0001726,2]
[335365433,1724161851994,-500.0,0.0001726,2]
[335365434,1724161852006,-311.72416109,0.0001726,2]
[335365435,1724161852016,-1622.19,0.0001726,2]
[335365436,1724161852027,-500.0,0.0001726,2]
[335365437,1724161852038,-500.0,0.0001726,2]
[335365438,1724161852049,-500.0,0.0001726,2]
[335365439,1724161852059,-538.4638379,0.0001726,2]
[335365440,1724161852069,-394.39263547,0.0001726,2]
[335365441,1724161852079,-500.0,0.0001726,2]
[335365442,1724161852091,-500.0,0.0001726,2]
[335365443,1724161852100,-2000.0,0.0001726,2]
[335365444,1724161852109,-866.07,0.0001726,2]
[335365445,1724161852120,-555.11710822,0.0001726,2]
[335365446,1724161852129,-500.0,0.0001726,2]
[335365447,1724161852141,-260.36086719,0.0001726,2]
[335365448,1724161852152,-500.0,0.0001726,2]
[335365449,1724161852164,-1117.96,0.0001726,2]
[335365450,1724161852175,-835.11,0.0001726,2]
[335365451,1724161852186,-500.0,0.0001726,2]
[335365452,1724161852196,-500.0,0.0001726,2]
[335365453,1724161852207,-500.0,0.0001726,2]
[335365454,1724161852219,-500.0,0.0001726,2]
[335365455,1724161852228,-500.0,0.0001726,2]
[335365456,1724161852240,-421.16147632,0.0001726,2]
[335365457,1724161852250,-500.0,0.0001726,2]
[335365458,1724161852261,-500.0,0.0001726,2]
[335365459,1724161852272,-500.0,0.0001726,2]
[335365460,1724161852281,-500.0,0.0001726,2]
[335365461,1724161852291,-637.71425816,0.0001726,2]
[335365462,1724161852302,-352.03186202,0.0001726,2]
[335365463,1724161852313,-201.80370868,0.0001726,2]
[335365464,1724161852323,-674.76,0.0001726,2]
[335365465,1724161852333,-500.0,0.0001726,2]
[335365466,1724161852344,-500.0,0.0001726,2]
[335365467,1724161852355,-500.0,0.0001726,2]
[335365468,1724161852366,-500.0,0.0001726,2]
[335365469,1724161852375,-308.82950679,0.0001726,2]
[335365470,1724161852386,-500.0,0.0001726,2]
[335365471,1724161852396,-1595.9,0.0001726,2]
[335365472,1724161852407,-500.0,0.0001726,2]
[335365473,1724161852421,-500.0,0.0001726,2]
[335365474,1724161852431,-500.0,0.0001726,2]
[335365475,1724161852440,-500.0,0.0001726,2]
[335365476,1724161852451,-500.0,0.0001726,2]
[335365477,1724161852463,-500.0,0.0001726,2]
[335365478,1724161852473,-500.0,0.0001726,2]
[335365479,1724161852484,-984.07,0.0001726,2]
[335365480,1724161852498,-500.0,0.0001726,2]
[335365481,1724161852511,-1040.91,0.0001726,2]
[335365482,1724161852522,-500.0,0.0001726,2]
[335365483,1724161852532,-506.31424299,0.0001726,2]
[335365484,1724161852543,-500.0,0.0001726,2]
[335365485,1724161852553,-500.0,0.0001726,2]
[335365486,1724161852564,-500.0,0.0001726,2]
[335365487,1724161852575,-500.0,0.0001726,2]
[335365488,1724161852586,-206.47219121,0.0001726,2]
[335365489,1724161852598,-500.0,0.0001726,2]
[335365490,1724161852607,-500.0,0.0001726,2]
[335365491,1724161852618,-500.0,0.0001726,2]
[335365492,1724161852628,-505.55852809,0.0001726,2]
[335365493,1724161852639,-472.89284262,0.0001726,2]
[335365494,1724161852764,-27.10715738,0.0001726,2]
[335365495,1724161852775,-570.39,0.0001726,2]
[335365496,1724161852784,-500.0,0.0001726,2]
[335365497,1724161852794,-500.0,0.0001726,2]
[335365498,1724161852804,-505.50113124,0.0001726,2]
[335365499,1724161852815,-500.0,0.0001726,2]
[335365500,1724161852825,-304.09321075,0.0001726,2]
[335365501,1724161852834,-500.0,0.0001726,2]
[335365502,1724161852845,-500.0,0.0001726,2]
[335365503,1724161852854,-500.0,0.0001726,2]
[335365504,1724161852865,-500.0,0.0001726,2]
[335365505,1724161852876,-2745.62,0.0001726,2]
[335365506,1724161852887,-500.0,0.0001726,2]
[335365507,1724161852899,-505.58643452,0.0001726,2]
[335365508,1724161852909,-500.0,0.0001726,2]
[335365509,1724161852920,-500.0,0.0001726,2]
[335365510,1724161852929,-325.07954754,0.0001726,2]
[335365511,1724161852939,-500.0,0.0001726,2]
[335365512,1724161852949,-164.24409187,0.0001726,2]
[335365513,1724161852963,-342.8112137,0.0001726,2]
[335365514,1724161852976,-500.0,0.0001726,2]
[335365515,1724161852986,-208.62,0.0001726,2]
[335365516,1724161852996,-500.0,0.0001726,2]
[335365517,1724161853006,-629.08,0.0001726,2]
[335365518,1724161853017,-500.0,0.0001726,2]
[335365519,1724161853028,-500.0,0.0001726,2]
[335365520,1724161853038,-505.43085597,0.0001726,2]
[335365521,1724161853048,-500.0,0.0001726,2]
[335365522,1724161853058,-320.5,0.0001726,2]
[335365523,1724161853069,-508.6277511,0.0001726,2]
[335365524,1724161853080,-174.4,0.0001726,2]
[335365525,1724161853091,-500.0,0.0001726,2]
[335365526,1724161853100,-500.0,0.0001726,2]
[335365527,1724161853110,-500.0,0.0001726,2]
[335365528,1724161853120,-505.13997833,0.0001726,2]
[335365529,1724161853129,-500.0,0.0001726,2]
[335365530,1724161853140,-500.0,0.0001726,2]
[335365531,1724161853150,-639.74,0.0001726,2]
[335365532,1724161853159,-629.97,0.0001726,2]
[335365533,1724161853169,-446.36646732,0.0001726,2]
[335365534,1724161853178,-500.0,0.0001726,2]
[335365535,1724161853188,-500.0,0.0001726,2]
[335365536,1724161853197,-500.0,0.0001726,2]
[335365537,1724161853206,-500.0,0.0001726,2]
[335365538,1724161853216,-500.0,0.0001726,2]
[335365539,1724161853226,-500.0,0.0001726,2]
[335365540,1724161853237,-500.0,0.0001726,2]
[335365541,1724161853247,-366.34625543,0.0001726,2]
[335365542,1724161853260,-432.85647337,0.0001726,2]
[335365543,1724161853279,-601.94985179,0.00012971,2]
[335365544,1724161853289,-324.79345743,0.0001726,2]
[335365545,1724161853303,-3623.67381377,0.0001726,2]
[335365546,1724161853313,-530.0,0.00017267,2]
[335365547,1724161853322,-226.7,0.00017267,2]
[335365548,1724161853332,-166.332644,0.00017309,2]
[335365549,1724161853343,-174.492611,0.00017309,2]
[335365550,1724161853353,-171.493404,0.00017309,2]
[335365551,1724161853362,-168.584172,0.00017309,2]
[335365552,1724161853372,-166.332644,0.00017309,2]
[335365553,1724161853382,-5117.28593988,0.00017313,2]
[335365554,1724161853392,-300.0,0.000175,7]
[335365555,1724161853402,-500.0,0.00017534,2]
[335365556,1724161853412,-283.11063343,0.00017534,2]
[335365557,1724161853425,-500.0,0.00017534,2]
[335365558,1724161853435,-305.249749,0.00017534,2]
[335365559,1724161853444,-500.0,0.00017534,2]
[335365560,1724161853453,-500.0,0.00017534,2]
[335365561,1724161853464,-500.0,0.00017534,2]
[335365562,1724161853473,-485.75164508,0.00017534,2]
[335365563,1724161853483,-500.0,0.00017534,2]
[335365564,1724161853494,-500.0,0.00017534,2]
[335365565,1724161853504,-500.0,0.00017534,2]
[335365566,1724161853514,-673.69,0.00017534,2]
[335365567,1724161853524,-1298.07,0.00017534,2]
[335365568,1724161853535,-500.0,0.00017534,2]
[335365569,1724161853547,-701.65,0.00017534,2]
[335365570,1724161853558,-500.0,0.00017534,2]
[335365571,1724161853569,-500.0,0.00017534,2]
[335365572,1724161853578,-1622.19,0.00017534,2]
[335365573,1724161853591,-500.0,0.00017534,2]
[335365574,1724161853601,-500.0,0.00017534,2]
[335365575,1724161853611,-480.35904781,0.00017534,2]
[335365576,1724161853621,-500.0,0.00017534,2]
[335365577,1724161853632,-2000.0,0.00017534,2]
[335365578,1724161853642,-866.07,0.00017534,2]
[335365579,1724161853653,-588.1015893,0.00017534,2]
[335365580,1724161853663,-500.0,0.00017534,2]
[335365581,1724161853673,-1117.96,0.00017534,2]
[335365582,1724161853682,-835.11,0.00017534,2]
[335365583,1724161853694,-579.37597392,0.00017534,2]
[335365584,1724161853705,-189.27118983,0.00017534,2]
[335365585,1724161853717,-500.0,0.00017534,2]
[335365586,1724161853727,-500.0,0.00017534,2]
[335365587,1724161853738,-500.0,0.00017534,2]
[335365588,1724161853748,-500.0,0.00017534,2]
[335365589,1724161853758,-500.0,0.00017534,2]
[335365590,1724161853767,-674.76,0.00017534,2]
[335365591,1724161853777,-500.0,0.00017534,2]
[335365592,1724161853786,-500.0,0.00017534,2]
[335365593,1724161853795,-500.0,0.00017534,2]
[335365594,1724161853805,-1595.9,0.00017534,2]
[335365595,1724161853814,-500.0,0.00017534,2]
[335365596,1724161853824,-500.0,0.00017534,2]
[335365597,1724161853833,-500.0,0.00017534,2]
[335365598,1724161853844,-489.35367587,0.00017534,2]
[335365599,1724161853853,-500.0,0.00017534,2]
[335365600,1724161853863,-984.07,0.00017534,2]
[335365601,1724161853872,-1040.91,0.00017534,2]
[335365602,1724161853882,-354.43854649,0.00017534,2]
[335365603,1724161854062,155.68909977,6.061e-05,2]
[335365604,1724161854100,160.87448942,6.061e-05,2]
[335365605,1724161854163,-534.91146023,0.00012163,2]
[335365606,1724161854175,-500.0,0.00016438,2]
[335365607,1724161854185,-500.0,0.00016712,2]
[335365608,1724161854197,-500.0,0.00016986,2]
[335365609,1724161854208,-780.17,0.00016986,2]
[335365610,1724161854217,-780.17,0.0001726,2]
[335365611,1724161854226,-506.03153066,0.0001726,2]
[335365612,1724161854236,-145.56145351,0.00017534,2]
[335365613,1724161854245,-500.0,0.00017534,2]
[335365614,1724161854255,-500.0,0.00017534,2]
[335365615,1724161854264,-500.0,0.00017534,2]
[335365616,1724161854274,-500.0,0.00017534,2]
[335365617,1724161854284,-500.0,0.00017534,2]
[335365618,1724161854293,-570.39,0.00017534,2]
[335365619,1724161854304,-151.0,0.00017534,2]
[335365620,1724161854314,-500.0,0.00017534,2]
[335365621,1724161854325,-500.0,0.00017534,2]
[335365622,1724161854334,-500.0,0.00017534,2]
[335365623,1724161854346,-2745.62,0.00017534,2]
[335365624,1724161854356,-500.0,0.00017534,2]
[335365625,1724161854366,-151.0,0.00017534,2]
[335365626,1724161854376,-151.0,0.00017534,2]
[335365627,1724161854387,-151.0,0.00017534,2]
[335365628,1724161854397,-500.0,0.00017534,2]
[335365629,1724161854408,-500.0,0.00017534,2]
[335365630,1724161854422,-205.77158943,0.00017534,2]
[335365631,1724161854433,-151.0,0.00017534,2]
[335365632,1724161854444,-629.08,0.00017534,2]
[335365633,1724161854454,-500.0,0.00017534,2]
[335365634,1724161854464,-151.0,0.00017534,2]
[335365635,1724161854474,-500.0,0.00017534,2]
[335365636,1724161854483,-500.0,0.00017534,2]
[335365637,1724161854495,-7199.964,0.00017534,2]
[335365638,1724161854506,-151.0,0.00017534,2]
[335365639,1724161854517,-7199.964,0.00017534,2]
[335365640,1724161854528,-500.0,0.00017534,2]
[335365641,1724161854539,-629.97,0.00017534,2]
[335365642,1724161854549,-162.435199,0.00017534,2]
[335365643,1724161854559,-500.0,0.00017534,2]
[335365644,1724161854569,-500.0,0.00017534,2]
[335365645,1724161854579,-151.0,0.00017534,2]
[335365646,1724161854592,-162.435199,0.00017534,2]
[335365647,1724161854601,-151.0,0.00017534,2]
[335365648,1724161854611,-151.0,0.00017534,2]
[335365649,1724161854622,-151.0,0.00017534,2]
[335365650,1724161854634,-4747.67,0.00017534,2]
[335365651,1724161854643,-780.17,0.00017534,2]
[335365652,1724161854654,-171.493404,0.00017598,2]
[335365653,1724161854665,-696.2303353,0.0001764,2]
[335365654,1724161854676,-530.0,0.00017682,2]
[335365655,1724161854687,-226.7,0.00017682,2]
[335365656,1724161854698,-5117.28593988,0.00017717,2]
[335365657,1724161854708,-174.492611,0.00017742,2]
[335365658,1724161854719,-500.0,0.00017808,2]
[335365659,1724161854730,-500.0,0.00017808,2]
[335365660,1724161854741,-500.0,0.00017808,2]
[335365661,1724161854751,-500.0,0.00017808,2]
[335365662,1724161854761,-500.0,0.00017808,2]
[335365663,1724161854772,-500.0,0.00017808,2]
[335365664,1724161854782,-673.69,0.00017808,2]
[335365665,1724161854794,-1298.07,0.00017808,2]
[335365666,1724161854806,-500.0,0.00017808,2]
[335365667,1724161854816,-701.65,0.00017808,2]
[335365668,1724161854826,-500.0,0.00017808,2]
[335365669,1724161854835,-287.49000296,0.00017808,2]
[335365670,1724161854848,-1622.19,0.00017808,2]
[335365671,1724161854859,-420.00257582,0.00017808,2]
[335365672,1724161854869,-406.73689988,0.00017808,2]
[335365673,1724161854880,-1765.31467839,0.00017808,2]
[335365674,1724161854890,-866.07,0.00017808,2]
[335365675,1724161854901,-500.0,0.00017808,2]
[335365676,1724161854912,-1117.96,0.00017808,2]
[335365677,1724161854924,-835.11,0.00017808,2]
[335365678,1724161854934,-500.0,0.00017808,2]
[335365679,1724161854943,-500.0,0.00017808,2]
[335365680,1724161854954,-500.0,0.00017808,2]
[335365681,1724161854963,-500.0,0.00017808,2]
[335365682,1724161854972,-674.76,0.00017808,2]
[335365683,1724161854982,-500.0,0.00017808,2]
[335365684,1724161854991,-1595.9,0.00017808,2]
[335365685,1724161855000,-500.0,0.00017808,2]
[335365686,1724161855010,-500.0,0.00017808,2]
[335365687,1724161855019,-500.0,0.00017808,2]
[335365688,1724161855028,-500.0,0.00017808,2]
[335365689,1724161855037,-984.07,0.00017808,2]
[335365690,1724161855046,-1040.91,0.00017808,2]
[335365691,1724161855056,-500.0,0.00017808,2]
[335365692,1724161855065,-500.0,0.00017808,2]
[335365693,1724161855074,-609.26081606,0.00017808,2]
[335365694,1724161855083,-500.0,0.00017808,2]
[335365695,1724161855096,-500.0,0.00017808,2]
[335365696,1724161855107,-570.39,0.00017808,2]
[335365697,1724161855116,-500.0,0.00017808,2]
[335365698,1724161855125,-500.0,0.00017808,2]
[335365699,1724161855133,-500.0,0.00017808,2]
[335365700,1724161855143,-2745.62,0.00017808,2]
[335365701,1724161855152,-500.0,0.00017808,2]
[335365702,1724161855161,-500.0,0.00017808,2]
[335365703,1724161855171,-500.0,0.00017808,2]
[335365704,1724161855180,-629.08,0.00017808,2]
[335365705,1724161855191,-500.0,0.00017808,2]
[335365706,1724161855203,-500.0,0.00017808,2]
[335365707,1724161855213,-500.0,0.00017808,2]
[335365708,1724161855224,-500.0,0.00017808,2]
[335365709,1724161855234,-629.97,0.00017808,2]
[335365710,1724161855246,-291.35,0.00017808,2]
[335365711,1724161855256,-500.0,0.00017808,2]
[335365712,1724161855266,-4747.67,0.00017808,2]
[335365713,1724161855276,-780.17,0.00017808,2]
[335365714,1724161855288,-171.493404,0.00017886,2]
[335365715,1724161855298,-800.0,0.00017887,2]
[335365716,1724161855308,-150.112236,0.000179,2]
[335365717,1724161855319,-150.603,0.00017935,2]
[335365718,1724161855328,-521.0,0.00017935,2]
[335365719,1724161855338,-1415.0,0.00017935,2]
[335365720,1724161855350,-7726.0,0.00017935,2]
[335365721,1724161855359,-150.074,0.00017935,2]
[335365722,1724161855369,-5117.28593988,0.00018064,2]
[335365723,1724161855379,-500.0,0.00018082,2]
[335365724,1724161855388,-500.0,0.00018082,2]
[335365725,1724161855398,-636.75669908,0.00018082,2]
[335365726,1724161855408,-500.0,0.00018082,2]
[335365727,1724161855422,-500.0,0.00018082,2]
[335365728,1724161855432,-500.0,0.00018082,2]
[335365729,1724161855442,-673.69,0.00018082,2]
[335365730,1724161855452,-1298.07,0.00018082,2]
[335365731,1724161855463,-500.0,0.00018082,2]
[335365732,1724161855474,-701.65,0.00018082,2]
[335365733,1724161855485,-500.0,0.00018082,2]
[335365734,1724161855498,-1622.19,0.00018082,2]
[335365735,1724161855508,-866.07,0.00018082,2]
[335365736,1724161855518,-179.99852246,0.00018082,2]
[335365737,1724161855530,-1117.96,0.00018082,2]
[335365738,1724161855543,-835.11,0.00018082,2]